[Event "CZE-ch U14 Girls 2020"]
[Site "Kouty nad Desnou"]
[Date "2020.03.09"]
[Round "4.16"]
[White "Sulcova, Tereza Radmila"]
[Black "Rezna, Hedvika"]
[Result "1-0"]
[ECO "C28"]
[WhiteElo "1555"]
[BlackElo "1242"]
[Annotator "NA"]
[PlyCount "83"]
[EventDate "2020.03.07"]
[EventCountry "CZE"]
[SourceTitle "playchess.com"]
[Source "ChessBase"]
[SourceQuality "1"]
[TimeControl "5400+30"]

1. e4 {[%emt 0:00:00]} e5 {[%emt 0:00:00]} 2. Nc3 {[%emt 0:00:17]} Nc6 {[%emt 0:00:07]} 3. Bc4 {[%emt 0:00:20]} Nf6 {[%emt 0:00:18]} 4. d3 {[%emt 0:00:40]} Bb4 {[%emt 0:01:25]} 5. f4 {[%emt 0:02:49]} d6 {[%emt 0:02:27]} 6. Nf3 {[%emt 0:00:58]} Bg4 {[%emt 0:01:22]} 7. h3 {[%emt 0:00:35]} Bd7 {[%emt 0:01:26]} 8. O-O {[%emt 0:06:10]} Qe7 {[%emt 0:00:45]} 9. a3 {[%emt 0:00:41]} Bc5+ {[%emt 0:02:31]} 10. Kh1 {[%emt 0:00:10]} O-O-O {[%emt 0:01:32]} 11. b4 {[%emt 0:00:54]} Bb6 {[%emt 0:05:33]} 12. Nd5 {[%emt 0:09:41]} Nxd5 {[%emt 0:00:38]} 13. Bxd5 {[%emt 0:00:07]} a6 {[%emt 0:05:43]} 14. c4 {[%emt 0:05:08]} Nb8 {[%emt 0:08:21]} 15. Ng5 {[%emt 0:06:27]} Be8 {[%emt 0:09:47]} 16. fxe5 {[%emt 0:01:38]} Qxe5 {[%emt 0:03:29]} 17. Rb1 {[%emt 0:02:39]} f6 {[%emt 0:04:50]} 18. Be6+ {[%emt 0:02:38]} Nd7 {[%emt 0:01:22]} 19. Bf4 {[%emt 0:01:03]} Qc3 {[%emt 0:05:25]} 20. Rb3 {[%emt 0:02:20]} Qd4 {[%emt 0:00:42]} 21. Nf3 {[%emt 0:00:23]} Bh5 {[%emt 0:01:52]} 22. g4 {[%emt 0:00:57]} Bg6 {[%emt 0:01:54]} 23. Nxd4 {[%emt 0:00:12]} Bxd4 {[%emt 0:00:06]} 24. Qc2 {[%emt 0:00:47]} h5 {[%emt 0:00:57]} 25. g5 {[%emt 0:00:51]} Rde8 {[%emt 0:01:47]} 26. Bxd7+ {[%emt 0:01:20]} Kxd7 {[%emt 0:00:13]} 27. c5 {[%emt 0:00:45]} dxc5 {[%emt 0:00:24]} 28. bxc5 {[%emt 0:00:10]} Rhf8 {[%emt 0:01:24]} 29. Rbb1 {[%emt 0:01:22]} fxg5 {[%emt 0:00:36]} 30. Qa4+ {[%emt 0:00:37]} Kc8 {[%emt 0:00:25]} 31. Qxd4 {[%emt 0:00:59]} gxf4 {[%emt 0:00:50]} 32. Qd5 {[%emt 0:00:21]} c6 {[%emt 0:00:28]} 33. Qg5 {[%emt 0:00:43]} Rf6 {[%emt 0:01:53]} 34. Rxf4 {[%emt 0:00:33]} Rxf4 {[%emt 0:00:19]} 35. Qxf4 {[%emt 0:00:06]} Rd8 {[%emt 0:00:29]} 36. Qf1 {[%emt 0:00:53]} Rd7 {[%emt 0:00:35]} 37. Rb4 {[%emt 0:00:41]} Rf7 {[%emt 0:00:33]} 38. Qe2 {[%emt 0:00:12]} Kb8 {[%emt 0:00:35]} 39. e5 {[%emt 0:00:31]} h4 {[%emt 0:00:31]} 40. e6 {[%emt 0:00:13]} Re7 {[%emt 0:00:09]} 41. d4 {[%emt 0:00:22]} Bf5 {[%emt 0:00:39]} 42. Qe5+ {[%emt 0:00:08]} 1-0

[Event "CZE-ch U14 Girls 2020"]
[Site "Kouty nad Desnou"]
[Date "2020.03.09"]
[Round "4.17"]
[White "Vankova, Marie"]
[Black "Glasbergerova, Lucie"]
[Result "1-0"]
[ECO "C50"]
[WhiteElo "1367"]
[BlackElo "1203"]
[Annotator "NA"]
[PlyCount "38"]
[EventDate "2020.03.07"]
[EventCountry "CZE"]
[SourceTitle "playchess.com"]
[Source "ChessBase"]
[SourceQuality "1"]
[TimeControl "5400+30"]

1. e4 {[%emt 0:00:00]} e5 {[%emt 0:00:00]} 2. Nf3 {[%emt 0:00:00]} Nc6 {[%emt 0:00:00]} 3. Bc4 {[%emt 0:00:12]} Bc5 {[%emt 0:00:00]} 4. O-O {[%emt 0:00:08]} Nf6 {[%emt 0:00:06]} 5. d4 {[%emt 0:00:05]} Bxd4 {[%emt 0:00:57]} 6. Nxd4 {[%emt 0:00:10]} Nxd4 {[%emt 0:00:12]} 7. f4 {[%emt 0:00:11]} d6 {[%emt 0:01:25]} 8. fxe5 {[%emt 0:00:07]} dxe5 {[%emt 0:00:18]} 9. Bg5 {[%emt 0:00:19]} Qd6 {[%emt 0:03:50]} 10. Bxf6 {[%emt 0:00:52]} gxf6 {[%emt 0:00:13]} 11. c3 {[%emt 0:01:48]} Qc5 {[%emt 0:12:01]} 12. Bxf7+ {[%emt 0:30:12]} Kxf7 {[%emt 0:01:03]} 13. Qh5+ {[%emt 0:04:50]} Ke7 {[%emt 0:00:39]} 14. cxd4 {[%emt 0:01:50]} Qxd4+ {[%emt 0:00:35]} 15. Rf2 {[%emt 0:00:17]} Qxe4 {[%emt 0:00:58]} 16. Nc3 {[%emt 0:00:31]} Qd4 {[%emt 0:00:45]} 17. Rd1 {[%emt 0:02:47]} Qc4 {[%emt 0:08:30]} 18. Nd5+ {[%emt 0:01:08]} Kf8 {[%emt 0:05:10]} 19. Rxf6+ {[%emt 0:00:14]} Kg8 {[%emt 0:00:09]} 1-0

[Event "CZE-ch U14 Girls 2020"]
[Site "Kouty nad Desnou"]
[Date "2020.03.09"]
[Round "4.18"]
[White "Jirotova, Eliska"]
[Black "Spacilova, Klara"]
[Result "1-0"]
[ECO "C45"]
[WhiteElo "1333"]
[BlackElo "1188"]
[Annotator "NA"]
[PlyCount "71"]
[EventDate "2020.03.07"]
[EventCountry "CZE"]
[SourceTitle "playchess.com"]
[Source "ChessBase"]
[SourceQuality "1"]
[TimeControl "5400+30"]

1. e4 {[%emt 0:00:00]} e5 {[%emt 0:00:00]} 2. Nf3 {[%emt 0:00:00]} Nc6 {[%emt 0:00:00]} 3. d4 {[%emt 0:00:00]} exd4 {[%emt 0:00:21]} 4. Nxd4 {[%emt 0:00:02]} Qh4 {[%emt 0:02:59]} 5. Nc3 {[%emt 0:00:12]} Bb4 {[%emt 0:00:11]} 6. Be2 {[%emt 0:01:42]} Qxe4 {[%emt 0:00:53]} 7. Ndb5 {[%emt 0:00:15]} Bxc3+ {[%emt 0:09:49]} 8. bxc3 {[%emt 0:00:10]} Kd8 {[%emt 0:03:57]} 9. O-O {[%emt 0:01:57]} Nge7 {[%emt 0:02:22]} 10. Re1 {[%emt 0:01:33]} Qd5 {[%emt 0:04:47]} 11. Nd4 {[%emt 0:01:35]} Re8 {[%emt 0:09:50]} 12. Bf3 {[%emt 0:17:23]} Qd6 {[%emt 0:00:44]} 13. a4 {[%emt 0:03:49]} Nxd4 {[%emt 0:01:17]} 14. cxd4 {[%emt 0:00:30]} Nc6 {[%emt 0:04:14]} 15. Bxc6 {[%emt 0:11:44]} Rxe1+ {[%emt 0:00:54]} 16. Qxe1 {[%emt 0:00:06]} Qxc6 {[%emt 0:00:50]} 17. Qe2 {[%emt 0:01:29]} d6 {[%emt 0:00:20]} 18. c4 {[%emt 0:02:15]} Bf5 {[%emt 0:01:00]} 19. c5 {[%emt 0:03:14]} Kd7 {[%emt 0:00:56]} 20. cxd6 {[%emt 0:01:34]} Qxd6 {[%emt 0:01:08]} 21. Ba3 {[%emt 0:01:09]} Qe6 {[%emt 0:04:40]} 22. Qb5+ {[%emt 0:00:45]} Kc8 {[%emt 0:02:02]} 23. Rc1 {[%emt 0:01:12]} c6 {[%emt 0:04:07]} 24. d5 {[%emt 0:01:46]} Qe5 {[%emt 0:04:44]} 25. Qc5 {[%emt 0:01:22]} Kd8 {[%emt 0:02:51]} 26. Rd1 {[%emt 0:03:33]} Qe4 {[%emt 0:17:05]} 27. dxc6+ {[%emt 0:02:19]} Kc7 {[%emt 0:02:08]} 28. cxb7+ {[%emt 0:01:04]} Kxb7 {[%emt 0:00:31]} 29. Qb5+ {[%emt 0:00:50]} Kc7 {[%emt 0:02:31]} 30. Bd6+ {[%emt 0:04:19]} Kc8 {[%emt 0:00:49]} 31. Qa6+ {[%emt 0:04:34]} Kd7 {[%emt 0:02:25]} 32. Bb4+ {[%emt 0:03:19]} Ke8 {[%emt 0:01:59]} 33. Re1 {[%emt 0:00:24]} Rb8 {[%emt 0:00:41]} 34. Rxe4+ {[%emt 0:00:15]} Bxe4 {[%emt 0:00:10]} 35. Qd6 {[%emt 0:00:36]} Rb6 {[%emt 0:00:58]} 36. Qe7# {[%emt 0:00:08]} 1-0

[Event "CZE-ch U14 Girls 2020"]
[Site "Kouty nad Desnou"]
[Date "2020.03.09"]
[Round "4.19"]
[White "Nagyova, Daniela"]
[Black "Stribna, Julie"]
[Result "1-0"]
[ECO "C54"]
[WhiteElo "1560"]
[BlackElo "1046"]
[Annotator "NA"]
[PlyCount "64"]
[EventDate "2020.03.07"]
[EventCountry "CZE"]
[SourceTitle "playchess.com"]
[Source "ChessBase"]
[SourceQuality "1"]
[TimeControl "5400+30"]

1. e4 {[%emt 0:00:00]} e5 {[%emt 0:00:04]} 2. Nf3 {[%emt 0:00:00]} Nc6 {[%emt 0:00:15]} 3. Bc4 {[%emt 0:00:27]} Bc5 {[%emt 0:00:17]} 4. c3 {[%emt 0:00:22]} Nf6 {[%emt 0:00:30]} 5. d4 {[%emt 0:00:23]} exd4 {[%emt 0:00:22]} 6. e5 {[%emt 0:01:20]} d5 {[%emt 0:00:41]} 7. Bb5 {[%emt 0:00:30]} Ne4 {[%emt 0:02:29]} 8. cxd4 {[%emt 0:12:28]} Bb6 {[%emt 0:02:54]} 9. Nc3 {[%emt 0:00:30]} O-O {[%emt 0:00:30]} 10. O-O {[%emt 0:00:30]} Bg4 {[%emt 0:00:30]} 11. Bxc6 {[%emt 0:00:30]} bxc6 {[%emt 0:00:30]} 12. Be3 {[%emt 0:00:30]} f6 {[%emt 0:00:30]} 13. exf6 {[%emt 0:00:30]} Qxf6 {[%emt 0:00:50]} 14. Rc1 {[%emt 0:02:26]} Bxf3 {[%emt 0:03:23]} 15. Qxf3 {[%emt 0:01:09]} Qxf3 {[%emt 0:02:52]} 16. gxf3 {[%emt 0:00:11]} Nxc3 {[%emt 0:02:00]} 17. Rxc3 {[%emt 0:00:29]} Rxf3 {[%emt 0:00:48]} 18. Rxc6 {[%emt 0:00:20]} Raf8 {[%emt 0:00:46]} 19. b4 {[%emt 0:02:48]} Rh3 {[%emt 0:02:13]} 20. a4 {[%emt 0:04:32]} a5 {[%emt 0:05:20]} 21. bxa5 {[%emt 0:01:07]} Bxa5 {[%emt 0:03:11]} 22. Rc5 {[%emt 0:00:39]} Ra8 {[%emt 0:05:19]} 23. Rxd5 {[%emt 0:01:08]} Rf3 {[%emt 0:04:06]} 24. Ra1 {[%emt 0:01:26]} Rff8 {[%emt 0:03:05]} 25. Rb5 {[%emt 0:02:22]} Rfd8 {[%emt 0:03:12]} 26. d5 {[%emt 0:02:29]} Rd7 {[%emt 0:23:30]} 27. Kg2 {[%emt 0:02:24]} Kf7 {[%emt 0:00:32]} 28. Kf3 {[%emt 0:00:21]} Bb6 {[%emt 0:24:27]} 29. a5 {[%emt 0:06:52]} Ba7 {[%emt 0:04:20]} 30. a6 {[%emt 0:02:12]} Bxe3 {[%emt 0:01:54]} 31. fxe3 {[%emt 0:01:02]} Rd6 {[%emt 0:01:37]} 32. a7 {[%emt 0:00:56]} Rdd8 {[%emt 0:00:35]} 1-0

[Event "CZE-ch U14 Girls 2020"]
[Site "Kouty nad Desnou"]
[Date "2020.03.09"]
[Round "4.23"]
[White "Ticha, Sofie"]
[Black "Nespora, Tatana"]
[Result "1-0"]
[ECO "B33"]
[WhiteElo "1216"]
[BlackElo "1310"]
[Annotator "NA"]
[PlyCount "57"]
[EventDate "2020.03.07"]
[EventCountry "CZE"]
[SourceTitle "playchess.com"]
[Source "ChessBase"]
[SourceQuality "1"]
[TimeControl "5400+30"]

1. e4 {[%emt 0:00:00]} c5 {[%emt 0:00:00]} 2. Nf3 {[%emt 0:00:00]} Nc6 {[%emt 0:01:02]} 3. d4 {[%emt 0:01:22]} cxd4 {[%emt 0:00:40]} 4. Nxd4 {[%emt 0:00:11]} Nf6 {[%emt 0:00:13]} 5. Nc3 {[%emt 0:00:28]} e5 {[%emt 0:00:29]} 6. Nf3 {[%emt 0:00:24]} Bb4 {[%emt 0:00:25]} 7. Bg5 {[%emt 0:02:29]} O-O {[%emt 0:02:29]} 8. Bc4 {[%emt 0:00:59]} d6 {[%emt 0:05:21]} 9. O-O {[%emt 0:00:25]} Bxc3 {[%emt 0:01:28]} 10. bxc3 {[%emt 0:00:32]} Bg4 {[%emt 0:01:14]} 11. Rb1 {[%emt 0:00:33]} Qd7 {[%emt 0:08:41]} 12. Qd3 {[%emt 0:04:04]} Kh8 {[%emt 0:04:36]} 13. Rfd1 {[%emt 0:07:41]} Rad8 {[%emt 0:10:36]} 14. h3 {[%emt 0:06:37]} Bh5 {[%emt 0:00:55]} 15. Rd2 {[%emt 0:01:15]} Bg6 {[%emt 0:06:07]} 16. Re1 {[%emt 0:10:30]} Ne7 {[%emt 0:03:26]} 17. Bb5 {[%emt 0:01:54]} Qc7 {[%emt 0:02:22]} 18. Nh4 {[%emt 0:02:16]} d5 {[%emt 0:07:32]} 19. Nxg6+ {[%emt 0:03:28]} fxg6 {[%emt 0:00:32]} 20. exd5 {[%emt 0:03:03]} Nexd5 {[%emt 0:10:44]} 21. Qc4 {[%emt 0:08:56]} Qb8 {[%emt 0:07:01]} 22. Qb3 {[%emt 0:13:51]} Nf4 {[%emt 0:05:04]} 23. Rxd8 {[%emt 0:01:38]} Rxd8 {[%emt 0:03:45]} 24. Qf7 {[%emt 0:01:29]} Rf8 {[%emt 0:01:49]} 25. Qe7 {[%emt 0:02:59]} a6 {[%emt 0:06:17]} 26. Ba4 {[%emt 0:02:25]} b5 {[%emt 0:00:37]} 27. Bb3 {[%emt 0:00:35]} Re8 {[%emt 0:03:03]} 28. Qxf6 {[%emt 0:01:05]} Qb7 {[%emt 0:01:18]} 29. Qxf4 {[%emt 0:01:02]} 1-0

[Event "CZE-ch U14 Girls 2020"]
[Site "Kouty nad Desnou"]
[Date "2020.03.10"]
[Round "5.12"]
[White "Martinkova, Magdalena"]
[Black "Trasakova, Adela"]
[Result "1-0"]
[ECO "B14"]
[WhiteElo "1473"]
[BlackElo "1639"]
[Annotator "NA"]
[PlyCount "76"]
[EventDate "2020.03.07"]
[EventCountry "CZE"]
[SourceTitle "playchess.com"]
[Source "ChessBase"]
[SourceQuality "1"]
[TimeControl "5400+30"]

1. e4 {[%emt 0:00:00]} c6 {[%emt 0:00:00]} 2. d4 {[%emt 0:00:00]} d5 {[%emt 0:00:00]} 3. exd5 {[%emt 0:00:00]} cxd5 {[%emt 0:00:02]} 4. c4 {[%emt 0:00:00]} Nf6 {[%emt 0:00:40]} 5. Nc3 {[%emt 0:00:00]} Nc6 {[%emt 0:00:21]} 6. Bg5 {[%emt 0:00:09]} e6 {[%emt 0:01:14]} 7. Nf3 {[%emt 0:00:07]} Be7 {[%emt 0:00:48]} 8. c5 {[%emt 0:00:11]} Ne4 {[%emt 0:00:48]} 9. Bxe7 {[%emt 0:02:18]} Qxe7 {[%emt 0:00:37]} 10. Rc1 {[%emt 0:02:13]} O-O {[%emt 0:03:36]} 11. Bb5 {[%emt 0:01:25]} Bd7 {[%emt 0:04:56]} 12. O-O {[%emt 0:03:37]} f5 {[%emt 0:02:24]} 13. Re1 {[%emt 0:09:33]} a6 {[%emt 0:07:03]} 14. Bxc6 {[%emt 0:03:57]} Bxc6 {[%emt 0:02:46]} 15. Na4 {[%emt 0:03:15]} Rf6 {[%emt 0:05:08]} 16. Nb6 {[%emt 0:07:10]} Raf8 {[%emt 0:06:05]} 17. b4 {[%emt 0:05:23]} Rh6 {[%emt 0:04:56]} 18. a4 {[%emt 0:02:03]} g5 {[%emt 0:01:44]} 19. Ne5 {[%emt 0:07:12]} g4 {[%emt 0:03:53]} 20. Rxe4 {[%emt 0:05:01]} dxe4 {[%emt 0:04:04]} 21. Qb3 {[%emt 0:03:50]} Qg5 {[%emt 0:05:58]} 22. Rb1 {[%emt 0:01:10]} f4 {[%emt 0:03:30]} 23. b5 {[%emt 0:02:13]} f3 {[%emt 0:11:04]} 24. bxc6 {[%emt 0:02:16]} Qh4 {[%emt 0:01:21]} 25. gxf3 {[%emt 0:02:48]} Qxh2+ {[%emt 0:03:04]} 26. Kf1 {[%emt 0:00:16]} gxf3 {[%emt 0:01:08]} 27. Ke1 {[%emt 0:00:14]} Qg1+ {[%emt 0:00:57]} 28. Kd2 {[%emt 0:00:10]} Qxf2+ {[%emt 0:00:20]} 29. Kc3 {[%emt 0:00:50]} Qe3+ {[%emt 0:02:18]} 30. Kc4 {[%emt 0:00:23]} Qe2+ {[%emt 0:01:47]} 31. Kb4 {[%emt 0:01:42]} bxc6 {[%emt 0:02:54]} 32. Nbd7 {[%emt 0:04:27]} a5+ {[%emt 0:07:57]} 33. Ka3 {[%emt 0:00:39]} f2 {[%emt 0:01:53]} 34. Qg3+ {[%emt 0:01:19]} Rg6 {[%emt 0:01:25]} 35. Nxg6 {[%emt 0:00:17]} Rf3+ {[%emt 0:00:50]} 36. Qxf3 {[%emt 0:02:06]} Qxf3+ {[%emt 0:00:15]} 37. Ka2 {[%emt 0:00:23]} Qe2+ {[%emt 0:02:24]} 38. Ka3 {[%emt 0:00:24]} Qd3+ {[%emt 0:00:46]} 1-0

[Event "CZE-ch U14 Girls 2020"]
[Site "Kouty nad Desnou"]
[Date "2020.03.10"]
[Round "5.13"]
[White "Sulcova, Tereza Radmila"]
[Black "Voriskova, Anna"]
[Result "0-1"]
[ECO "A47"]
[WhiteElo "1555"]
[BlackElo "1820"]
[Annotator "NA"]
[PlyCount "76"]
[EventDate "2020.03.07"]
[EventCountry "CZE"]
[SourceTitle "playchess.com"]
[Source "ChessBase"]
[SourceQuality "1"]
[TimeControl "5400+30"]

{[%evp 9,73,7,22,32767,9,-12,31,-11,0,-9,-14,-14,-18,-18,-38,-29,-16,-35,-11,-8,34,-6,0,0,-2,0,29,52,43,41,31,0,32767,32767,32767,8,0,0,1,0,27,0,0,0,32767,-38,-29,32767,-41,-77,32767,0,29,0,21,-10,0,32767,-34,-49,-44,-132,-92,-84,-120,-182]} 1. d4 {[%emt 0:00:00]} Nf6 {[%emt 0:00:00]} 2. Nf3 {[%emt 0:00:00]} b6 {[%emt 0:00:00]} 3. e3 {[%emt 0:00:49]} g6 {[%emt 0:00:26]} 4. Bd3 {[%emt 0:01:06]} Bb7 {[%emt 0:01:17]} 5. Nbd2 {[%emt 0:00:43]} c5 {[%emt 0:01:15]} 6. O-O {[%emt 0:01:29]} Bg7 {[%emt 0:00:24]} 7. c4 {[%emt 0:02:18] A47: 1 d4 Nf6 2 Nf3 b6: Torre, London and Colle Systems.} O-O {[%emt 0:14:25]} 8. b3 {[%emt 0:01:03]} cxd4 {[%emt 0:04:08]} 9. exd4 {[%emt 0:02:38]} d5 {[%emt 0:05:29]} 10. Bb2 {[%emt 0:03:16]} Nc6 {[%emt 0:01:33]} 11. a3 {[%emt 0:06:52]} e6 {[%emt 0:04:22]} 12. Rc1 {[%emt 0:07:18]} Rc8 {[%emt 0:01:27]} 13. Re1 {[%emt 0:07:23] [#]} Rc7 $146 {[%emt 0:04:28]} ({Predecessor:} 13... Nh5 14. cxd5 Qxd5 15. Be4 Qd7 16. Nc4 Rfd8 17. Bxc6 Qxc6 18. Na5 Qd5 19. Nxb7 Qxb7 {0-1 (36) Russell,C (2169)-Zhou,Y (2434) London 2018}) 14. c5 {[%emt 0:04:31]} Nd7 {[%emt 0:10:06]} 15. cxb6 {[%emt 0:08:10]} axb6 {[%emt 0:02:37]} 16. b4 {[%emt 0:04:49]} Re8 {[%emt 0:04:20]} 17. Ne5 {[%emt 0:01:42]} f6 {[%emt 0:07:35]} 18. Nxc6 {[%emt 0:06:43]} Bxc6 {[%emt 0:02:36]} 19. Qc2 {[%emt 0:15:33]} Rc8 $1 {[%emt 0:01:31]} 20. Ba6 {[%emt 0:00:43]} Bb7 {[%emt 0:01:09]} 21. Qd3 {[%emt 0:00:12]} Bxa6 {[%emt 0:01:56]} 22. Qxa6 {[%emt 0:00:08]} Bh6 {[%emt 0:06:22]} 23. Rxc8 {[%emt 0:09:45]} Qxc8 {[%emt 0:00:10]} 24. Qd3 {[%emt 0:00:15]} Qb7 {[%emt 0:01:31]} 25. Nf3 {[%emt 0:01:49]} Kf7 {[%emt 0:03:25]} 26. h4 {[%emt 0:04:41]} Qc6 {[%emt 0:03:16]} 27. h5 {[%emt 0:01:05]} Rc8 {[%emt 0:01:49]} 28. hxg6+ {[%emt 0:00:35]} hxg6 {[%emt 0:00:12]} 29. Qe2 {[%emt 0:01:14]} Rh8 {[%emt 0:04:57]} 30. Nh4 {[%emt 0:02:22]} Bg5 {[%emt 0:01:05]} 31. Nf3 {[%emt 0:00:15]} Bh6 $1 {[%emt 0:00:53]} 32. Nh4 {[%emt 0:00:15]} b5 {[%emt 0:05:53]} 33. Qg4 {[%emt 0:00:54]} Rg8 {[%emt 0:00:34]} 34. Qe2 {[%emt 0:00:39]} (34. a4 $5) 34... Nb6 {[%emt 0:00:29]} 35. g4 {[%emt 0:02:24]} ({Better is} 35. g3 $15) 35... Nc4 {[%emt 0:01:00]} 36. Nf3 {[%emt 0:00:25] [#]} Rh8 $1 {[%emt 0:01:56]} 37. Kg2 $19 {[%emt 0:02:28]} (37. g5 $17 Nxb2 38. Qxb2 Bxg5 39. Nxg5+ fxg5 40. Qd2) 37... Bf4 {[%emt 0:01:00]} 38. Qc2 {[%emt 0:01:47]} Ne3+ {[%emt 0:00:23]} 0-1

[Event "CZE-ch U14 Girls 2020"]
[Site "Kouty nad Desnou"]
[Date "2020.03.10"]
[Round "5.14"]
[White "Fizerova, Lucie"]
[Black "Vankova, Marie"]
[Result "1-0"]
[ECO "D00"]
[WhiteElo "1574"]
[BlackElo "1367"]
[Annotator "NA"]
[PlyCount "85"]
[EventDate "2020.03.07"]
[EventCountry "CZE"]
[SourceTitle "playchess.com"]
[Source "ChessBase"]
[SourceQuality "1"]
[TimeControl "5400+30"]

1. d4 {[%emt 0:00:00]} d5 {[%emt 0:00:00]} 2. Bf4 {[%emt 0:00:00]} Nf6 {[%emt 0:00:15]} 3. e3 {[%emt 0:00:11]} c5 {[%emt 0:01:17]} 4. c3 {[%emt 0:00:47]} Qb6 {[%emt 0:01:20]} 5. Qb3 {[%emt 0:00:16]} c4 {[%emt 0:00:49]} 6. Qc2 {[%emt 0:00:55]} Nc6 {[%emt 0:01:36]} 7. Nd2 {[%emt 0:02:18]} Bg4 {[%emt 0:06:15]} 8. Ngf3 {[%emt 0:06:19]} Bh5 {[%emt 0:04:17]} 9. b3 {[%emt 0:03:22]} Bg6 {[%emt 0:02:30]} 10. Qd1 {[%emt 0:04:24]} cxb3 {[%emt 0:15:30]} 11. axb3 {[%emt 0:00:32]} e6 {[%emt 0:01:39]} 12. Be2 {[%emt 0:02:15]} Be7 {[%emt 0:01:14]} 13. O-O {[%emt 0:02:41]} O-O {[%emt 0:00:48]} 14. h3 {[%emt 0:11:07]} h6 {[%emt 0:05:40]} 15. b4 {[%emt 0:07:52]} a6 {[%emt 0:05:02]} 16. Qc1 {[%emt 0:09:41]} Rac8 {[%emt 0:03:05]} 17. Qb2 {[%emt 0:02:05]} Na7 {[%emt 0:09:27]} 18. Ne5 {[%emt 0:02:47]} Bh7 {[%emt 0:03:24]} 19. Rfc1 {[%emt 0:07:01]} Rfd8 {[%emt 0:04:55]} 20. Nb3 {[%emt 0:06:17]} Nd7 {[%emt 0:06:39]} 21. Nxd7 {[%emt 0:04:55]} Rxd7 {[%emt 0:00:16]} 22. Qd2 {[%emt 0:03:30]} Rdd8 {[%emt 0:04:07]} 23. Nc5 {[%emt 0:06:41]} Bxc5 {[%emt 0:03:58]} 24. dxc5 {[%emt 0:01:09]} Qc6 {[%emt 0:00:39]} 25. Rd1 {[%emt 0:01:42]} Qe8 {[%emt 0:01:09]} 26. Qb2 {[%emt 0:07:30]} Nc6 {[%emt 0:09:52]} 27. Rac1 {[%emt 0:03:19]} f6 {[%emt 0:03:20]} 28. Bg3 {[%emt 0:00:43]} Qf7 {[%emt 0:00:27]} 29. c4 {[%emt 0:00:31]} dxc4 {[%emt 0:01:12]} 30. Bxc4 {[%emt 0:00:01]} Ne7 {[%emt 0:01:04]} 31. Qb3 {[%emt 0:00:42]} Nd5 {[%emt 0:01:18]} 32. f3 {[%emt 0:01:17]} Re8 {[%emt 0:00:29]} 33. e4 {[%emt 0:00:24]} Nc7 {[%emt 0:00:43]} 34. Rd6 {[%emt 0:01:03]} Kh8 {[%emt 0:01:01]} 35. Rcd1 {[%emt 0:00:29]} Bg8 {[%emt 0:00:37]} 36. Rd7 {[%emt 0:01:15]} Re7 {[%emt 0:00:12]} 37. Qa4 {[%emt 0:00:58]} Qf8 {[%emt 0:01:10]} 38. Bd6 {[%emt 0:00:55]} Rxd7 {[%emt 0:00:40]} 39. Bxf8 {[%emt 0:00:18]} Rxd1+ {[%emt 0:00:13]} 40. Qxd1 {[%emt 0:00:02]} Rxf8 {[%emt 0:00:14]} 41. Qd7 {[%emt 0:00:22]} Rf7 {[%emt 0:00:19]} 42. Qc8 {[%emt 0:01:00]} b5 {[%emt 0:01:28]} 43. cxb6 {[%emt 0:00:58]} 1-0

[Event "CZE-ch U14 Girls 2020"]
[Site "Kouty nad Desnou"]
[Date "2020.03.10"]
[Round "5.15"]
[White "Hosova, Sandra"]
[Black "Jirotova, Eliska"]
[Result "1-0"]
[ECO "B21"]
[WhiteElo "1297"]
[BlackElo "1333"]
[Annotator "NA"]
[PlyCount "71"]
[EventDate "2020.03.07"]
[EventCountry "CZE"]
[SourceTitle "playchess.com"]
[Source "ChessBase"]
[SourceQuality "1"]
[TimeControl "5400+30"]

1. e4 {[%emt 0:04:12]} c5 {[%emt 0:00:00]} 2. d4 {[%emt 0:00:30]} cxd4 {[%emt 0:01:03]} 3. c3 {[%emt 0:00:18]} dxc3 {[%emt 0:01:30]} 4. Nxc3 {[%emt 0:00:21]} Nc6 {[%emt 0:00:35]} 5. Bc4 {[%emt 0:00:51]} Nf6 {[%emt 0:01:43]} 6. Nf3 {[%emt 0:01:06]} d6 {[%emt 0:02:22]} 7. e5 {[%emt 0:02:38]} dxe5 {[%emt 0:06:14]} 8. Qxd8+ {[%emt 0:01:46]} Nxd8 {[%emt 0:03:21]} 9. Nb5 {[%emt 0:01:32]} Nc6 {[%emt 0:08:12]} 10. Nc7+ {[%emt 0:02:13]} Kd8 {[%emt 0:01:18]} 11. Nxa8 {[%emt 0:00:55]} e6 {[%emt 0:03:09]} 12. Ng5 {[%emt 0:02:30]} Bb4+ {[%emt 0:01:59]} 13. Bd2 {[%emt 0:02:26]} Bxd2+ {[%emt 0:00:17]} 14. Kxd2 {[%emt 0:00:11]} Ke7 {[%emt 0:00:58]} 15. Rad1 {[%emt 0:02:25]} Bd7 {[%emt 0:03:22]} 16. Nc7 {[%emt 0:01:24]} a6 {[%emt 0:03:32]} 17. f3 {[%emt 0:02:39]} Nd4 {[%emt 0:03:36]} 18. Nxa6 {[%emt 0:02:59]} bxa6 {[%emt 0:00:17]} 19. Bxa6 {[%emt 0:00:40]} Nd5 {[%emt 0:03:30]} 20. Bc4 {[%emt 0:03:47]} f5 {[%emt 0:02:04]} 21. Rhe1 {[%emt 0:06:27]} Kf6 {[%emt 0:00:26]} 22. Nh3 {[%emt 0:02:00]} h5 {[%emt 0:00:57]} 23. f4 {[%emt 0:08:07]} Nxf4 {[%emt 0:07:17]} 24. Nxf4 {[%emt 0:03:15]} exf4 {[%emt 0:01:21]} 25. b3 {[%emt 0:07:54]} Bc6 {[%emt 0:01:42]} 26. Kc1 {[%emt 0:02:52]} e5 {[%emt 0:08:20]} 27. Rxd4 {[%emt 0:01:59]} exd4 {[%emt 0:00:16]} 28. Re6+ {[%emt 0:00:05]} Kf7 {[%emt 0:02:00]} 29. Rh6+ {[%emt 0:00:54]} Ke7 {[%emt 0:01:30]} 30. Rxh8 {[%emt 0:01:15]} Bxg2 {[%emt 0:00:21]} 31. Rxh5 {[%emt 0:00:56]} Kf6 {[%emt 0:00:23]} 32. Kd2 {[%emt 0:01:54]} Be4 {[%emt 0:01:57]} 33. h4 {[%emt 0:03:02]} f3 {[%emt 0:01:05]} 34. Rg5 {[%emt 0:01:02]} g6 {[%emt 0:01:34]} 35. a4 {[%emt 0:00:40]} f4 {[%emt 0:03:04]} 36. Bd5 {[%emt 0:01:44]} 1-0